fUST/lending_fUST_20240302
["ID","MTS","AMOUNT","RATE_DAILY","PERIOD"]
[316113247,1709359835708,-155.0558201,0.00023998,2]
[316113248,1709359835718,-4723.26066805,0.00023998,2]
[316113249,1709359835728,-161.99047563,0.00023998,2]
[316113250,1709359835738,-429.83650399,0.00023998,2]
[316113251,1709359835748,-416.04811495,0.00023998,2]
[316113252,1709359835758,-2117.88476154,0.00023998,2]
[316113253,1709359835767,-156.15850147,0.00023998,2]
[316113254,1709359835778,-169.86907154,0.00023998,2]
[316113255,1709359835787,-539.83101076,0.00023998,2]
[316113256,1709359835797,-15109.25875387,0.00023998,2]
[316113257,1709359835806,-611.49646159,0.00023998,2]
[316113258,1709359835816,-184.36863849,0.00023998,2]
[316113259,1709359835826,-180.00477285,0.00023998,2]
[316113260,1709359835835,-155.15670828,0.00023998,2]
[316113261,1709359835844,-185.81367766,0.00023998,2]
[316113262,1709359835853,-206.75192354,0.00023998,2]
[316113263,1709359835863,-182.21287446,0.00023998,2]
[316113264,1709359835873,-929.85495771,0.00023998,2]
[316113265,1709359835883,-401.83058044,0.00023998,2]
[316113266,1709359835893,-558.92126396,0.00023998,2]
[316113267,1709359835903,-8382.93769081,0.00023998,2]
[316113268,1709359835912,-180.09180806,0.00023998,2]
[316113269,1709359835923,-400.0,0.00023998,2]
[316113270,1709359835932,-1251.24,0.00023998,2]
[316113271,1709359835941,-569.28,0.00023998,2]
[316113272,1709359835950,-500.0,0.00023998,2]
[316113273,1709359835959,-500.0,0.00023998,2]
[316113274,1709359835968,-295.22725934,0.00023998,2]
[316113275,1709359835978,-1488.4,0.00023998,2]
[316113276,1709359835987,-500.0,0.00023998,2]
[316113277,1709359835997,-500.0,0.00023998,2]
[316113278,1709359836007,-500.0,0.00023998,2]
[316113279,1709359836016,-500.0,0.00023998,2]
[316113280,1709359836026,-500.0,0.00023998,2]
[316113281,1709359836036,-500.0,0.00023998,2]
[316113282,1709359836045,-460.12,0.00023998,2]
[316113283,1709359836055,-500.0,0.00023998,2]
[316113284,1709359836064,-331.12268332,0.00023998,2]
[316113285,1709359836073,-407.30211799,0.00023998,2]
[316113286,1709359836082,-3189.5128817,0.00023999,2]
[316113287,1709359836092,-500.0,0.00023999,2]
[316113288,1709359836101,-500.0,0.00023999,2]
[316113289,1709359836111,-1251.24,0.00023999,2]
[316113290,1709359836120,-1251.24,0.00023999,2]
[316113291,1709359836130,-1251.24,0.00023999,2]
[316113292,1709359836140,-1251.24,0.00023999,2]
[316113293,1709359836149,-1251.24,0.00023999,2]
[316113294,1709359836158,-1251.24,0.00023999,2]
[316113296,1709359836168,-1251.24,0.00023999,2]
[316113297,1709359836177,-1251.24,0.00023999,2]
[316113298,1709359836187,-1251.24,0.00023999,2]
[316113299,1709359836196,-1251.24,0.00023999,2]
[316113300,1709359836205,-1251.24,0.00023999,2]
[316113301,1709359836215,-1251.24,0.00023999,2]
[316113302,1709359836224,-1251.24,0.00023999,2]
[316113303,1709359836234,-1251.24,0.00023999,2]
[316113304,1709359836243,-1251.36153992,0.00023999,2]
[316113305,1709359836252,-4509.46,0.00023999,2]
[316113306,1709359836261,-4509.46,0.00023999,2]
[316113307,1709359836271,-4509.46,0.00023999,2]
[316113308,1709359836279,-4509.46,0.00023999,2]
[316113309,1709359836289,-4509.46,0.00023999,2]
[316113310,1709359836298,-4509.46,0.00023999,2]
[316113311,1709359836307,-4509.46,0.00023999,2]
[316113312,1709359836316,-4509.46,0.00023999,2]
[316113313,1709359836325,-4509.46,0.00023999,2]
[316113314,1709359836335,-4509.46,0.00023999,2]
[316113315,1709359836344,-4509.46,0.00023999,2]
[316113316,1709359836353,-4509.46,0.00023999,2]
[316113317,1709359836363,-4509.46,0.00023999,2]
[316113318,1709359836372,-4509.46,0.00023999,2]
[316113319,1709359836381,-4509.46,0.00023999,2]
[316113320,1709359836391,-4509.46,0.00023999,2]
[316113321,1709359836400,-4509.4732097,0.00023999,2]
[316113322,1709359836410,-569.28,0.00023999,2]
[316113323,1709359836419,-569.28,0.00023999,2]
[316113324,1709359836430,-569.28,0.00023999,2]
[316113325,1709359836439,-569.28,0.00023999,2]
[316113326,1709359836448,-569.28,0.00023999,2]
[316113327,1709359836457,-569.28,0.00023999,2]
[316113328,1709359836467,-569.28,0.00023999,2]
[316113329,1709359836476,-569.28,0.00023999,2]
[316113330,1709359836485,-569.28,0.00023999,2]
[316113331,1709359836494,-569.28,0.00023999,2]
[316113332,1709359836503,-569.28,0.00023999,2]
[316113333,1709359836513,-569.28,0.00023999,2]
[316113334,1709359836522,-569.28,0.00023999,2]
[316113335,1709359836531,-569.28,0.00023999,2]
[316113336,1709359836540,-569.50620228,0.00023999,2]
[316113337,1709359836549,-500.0,0.00023999,2]
[316113338,1709359836559,-500.0,0.00023999,2]
[316113339,1709359836568,-500.0,0.00023999,2]
[316113340,1709359836577,-500.0,0.00023999,2]
[316113341,1709359836587,-500.0,0.00023999,2]
[316113342,1709359836596,-500.0,0.00023999,2]
[316113343,1709359836605,-500.0,0.00023999,2]
[316113344,1709359836614,-500.0,0.00023999,2]
[316113345,1709359836623,-500.0,0.00023999,2]
[316113346,1709359836633,-500.0,0.00023999,2]
[316113347,1709359836642,-500.0,0.00023999,2]
[316113348,1709359836651,-500.0,0.00023999,2]
[316113349,1709359836660,-500.0,0.00023999,2]
[316113350,1709359836669,-500.0,0.00023999,2]
[316113351,1709359836679,-494.07969469,0.00023999,2]
[316113352,1709359836691,-532.9,0.00023999,2]
[316113353,1709359836702,-532.9,0.00023999,2]
[316113354,1709359836711,-532.9,0.00023999,2]
[316113355,1709359836720,-532.9,0.00023999,2]
[316113356,1709359836729,-532.9,0.00023999,2]
[316113357,1709359836740,-532.9,0.00023999,2]
[316113358,1709359836749,-532.9,0.00023999,2]
[316113359,1709359836758,-532.9,0.00023999,2]
[316113360,1709359836768,-532.9,0.00023999,2]
[316113361,1709359836777,-532.9,0.00023999,2]
[316113362,1709359836787,-532.9,0.00023999,2]
[316113363,1709359836796,-532.9,0.00023999,2]
[316113364,1709359836805,-532.9,0.00023999,2]
[316113365,1709359836815,-532.9,0.00023999,2]
[316113366,1709359836824,-532.9,0.00023999,2]
[316113367,1709359836834,-532.9,0.00023999,2]
[316113368,1709359836843,-532.96122032,0.00023999,2]
[316113369,1709359836852,-1488.4,0.00023999,2]
[316113370,1709359836861,-1488.4,0.00023999,2]
[316113371,1709359836870,-1488.4,0.00023999,2]
[316113372,1709359836879,-1488.4,0.00023999,2]
[316113373,1709359836888,-1488.4,0.00023999,2]
[316113374,1709359836897,-1488.4,0.00023999,2]
[316113375,1709359836906,-1488.4,0.00023999,2]
[316113376,1709359836915,-1488.4,0.00023999,2]
[316113377,1709359836924,-1488.4,0.00023999,2]
[316113378,1709359836933,-1488.4,0.00023999,2]
[316113379,1709359836943,-1488.4,0.00023999,2]
[316113380,1709359836952,-1488.4,0.00023999,2]
[316113381,1709359836961,-1488.4,0.00023999,2]
[316113382,1709359836970,-1488.4,0.00023999,2]
[316113383,1709359836979,-1488.5428645,0.00023999,2]
[316113384,1709359836988,-500.0,0.00023999,2]
[316113385,1709359836997,-500.0,0.00023999,2]
[316113386,1709359837006,-500.0,0.00023999,2]
[316113387,1709359837015,-500.0,0.00023999,2]
[316113388,1709359837024,-500.0,0.00023999,2]
[316113389,1709359837034,-500.0,0.00023999,2]
[316113390,1709359837043,-500.0,0.00023999,2]
[316113391,1709359837052,-500.0,0.00023999,2]
[316113392,1709359837061,-500.0,0.00023999,2]
[316113393,1709359837070,-500.0,0.00023999,2]
[316113394,1709359837080,-500.0,0.00023999,2]
[316113395,1709359837089,-644.34991703,0.00023999,2]
[316113396,1709359837098,-335.82107986,0.00023999,2]
[316113397,1709359837108,-500.0,0.00023999,2]
[316113398,1709359837117,-500.0,0.00023999,2]
[316113399,1709359837127,-500.0,0.00023999,2]
[316113400,1709359837136,-500.0,0.00023999,2]
[316113401,1709359837145,-579.91483865,0.00023999,2]
[316113402,1709359837154,-500.0,0.00023999,2]
[316113403,1709359837163,-500.0,0.00023999,2]
[316113404,1709359837174,-500.0,0.00023999,2]
[316113405,1709359837182,-500.0,0.00023999,2]
[316113406,1709359837192,-500.0,0.00023999,2]
[316113407,1709359837200,-500.0,0.00023999,2]
[316113408,1709359837209,-500.0,0.00023999,2]
[316113409,1709359837218,-500.0,0.00023999,2]
[316113410,1709359837227,-500.0,0.00023999,2]
[316113411,1709359837237,-500.0,0.00023999,2]
[316113412,1709359837246,-500.0,0.00023999,2]
[316113413,1709359837255,-500.0,0.00023999,2]
[316113414,1709359837265,-500.0,0.00023999,2]
[316113415,1709359837275,-228.07586974,0.00023999,2]
[316113416,1709359837284,-23043.6219694,0.00024,5]
[316113461,1709359838353,-500.0,0.00020996,2]
[316113462,1709359838363,-312.19545452,0.00021898,2]
[316113463,1709359838420,-187.80454548,0.00021898,2]
[316113464,1709359838431,-500.0,0.0002289,2]
[316113465,1709359838440,-1396.0,0.00023,2]
[316113466,1709359838449,-500.0,0.00023531,2]
[316113467,1709359838458,-500.0,0.00023997,2]
[316113468,1709359838467,-990426.14253023,0.00024,5]
[316113469,1709359838477,-21321.04246075,0.00024,5]
[316113786,1709359841399,-580.0,0.000231,2]
[316113788,1709359841409,-676.41,0.0002399,3]
[316113790,1709359841418,-2328.74197365,0.00024,5]
[316113792,1709359841430,-21087.99440021,0.00024,5]
[316113994,1709359843457,-623.51457939,0.00023999,2]
[316113996,1709359843466,-6889.19559938,0.00024,5]
[316114241,1709359846376,-500.0,0.00020547,2]
[316114242,1709359846386,-321.4643478,0.00023999,2]
[316114243,1709359846395,-374.07264385,0.00023999,2]
[316114244,1709359846404,-268.70849392,0.00023999,2]
[316114315,1709361032558,-623.51457939,0.00019513,2]
[316114316,1709361032569,-274.0783514,0.00019514,2]
[316114317,1709361032578,-2843.0782706,0.00019514,2]
[316114318,1709361032589,-3815.33336706,0.00019514,2]
[316114336,1709361038905,-196.55503823,0.000189,2]
[316114337,1709361038914,-1592.56843785,0.00019512,2]
[316114338,1709361038923,-274.0783514,0.00019512,2]
[316114339,1709361038932,-1352.69028097,0.00019514,2]
[316114340,1709361038941,-3815.3333671,0.0001952,2]
[316114341,1709361038951,-374.07264385,0.00019871,2]
[316114342,1709361038960,-2000.0,0.0002,2]
[316114343,1709361038970,-186.71,0.00020537,3]
[316114344,1709361038979,-155.59,0.00020537,3]
[316114346,1709361038988,-777.97,0.00020537,3]
[316114348,1709361038998,-500.0,0.00020547,2]
[316114350,1709361039007,-271.2710642,0.00020547,2]
[316114351,1709361039016,-500.0,0.00020547,2]
[316114352,1709361039026,-506.58725101,0.00020547,2]
[316114353,1709361039035,-500.0,0.00020547,2]
[316114354,1709361039045,-500.0,0.00020547,2]
[316114355,1709361039055,-500.0,0.00020547,2]
[316114356,1709361039066,-500.0,0.00020547,2]
[316114357,1709361039076,-502.76775319,0.00020547,2]
[316114358,1709361039085,-500.0,0.00020547,2]
[316114359,1709361039094,-400.0,0.00020547,2]
[316114360,1709361039104,-500.0,0.00020547,2]
[316114361,1709361039114,-500.0,0.00020547,2]
[316114362,1709361039123,-500.0,0.00020547,2]
[316114363,1709361039132,-500.0,0.00020547,2]
[316114364,1709361039142,-500.0,0.00020547,2]
[316114365,1709361039151,-261.29636981,0.00020547,2]
[316114366,1709361039162,-502.2675815,0.00020547,2]
[316114367,1709361039171,-500.0,0.00020547,2]
[316114368,1709361039180,-500.0,0.00020547,2]
[316114369,1709361039189,-500.0,0.00020547,2]
[316114370,1709361039198,-500.0,0.00020547,2]
[316114371,1709361039207,-614.34189258,0.00020547,2]
[316114372,1709361039216,-266.87471245,0.00020547,2]
[316114373,1709361039226,-500.0,0.00020547,2]
[316114374,1709361039236,-500.0,0.00020547,2]
[316114375,1709361039245,-423.05976573,0.00020547,2]
[316114376,1709361039256,-500.0,0.00020547,2]
[316114377,1709361039265,-500.0,0.00020547,2]
[316114378,1709361039274,-500.0,0.00020547,2]
[316114379,1709361039284,-500.0,0.00020547,2]
[316114380,1709361039293,-500.0,0.00020547,2]
[316114381,1709361039303,-500.0,0.00020547,2]
[316114382,1709361039312,-500.0,0.00020547,2]
[316114383,1709361039321,-500.0,0.00020547,2]
[316114384,1709361039330,-500.0,0.00020547,2]
[316114385,1709361039340,-419.23116836,0.00020547,2]
[316114386,1709361039349,-500.0,0.00020547,2]
[316114387,1709361039358,-500.0,0.00020547,2]
[316114388,1709361039368,-500.0,0.00020547,2]
[316114389,1709361039378,-504.01170368,0.00020547,2]
[316114390,1709361039388,-501.60986542,0.00020547,2]
[316114391,1709361039399,-503.46659904,0.00020547,2]
[316114392,1709361039409,-368.06715263,0.00020547,2]
[316114393,1709361039418,-500.0,0.00020547,2]
[316114394,1709361039437,-500.0,0.00020547,2]
[316114395,1709361039449,-500.0,0.00020547,2]
[316114396,1709361039459,-153.19976772,0.00020547,2]
[316114397,1709361039468,-500.0,0.00020547,2]
[316114398,1709361039478,-501.18606922,0.00020547,2]
[316114399,1709361039488,-500.0,0.00020547,2]
[316114400,1709361039498,-500.0,0.00020547,2]
[316114401,1709361039509,-632.22100684,0.00020547,2]
[316114402,1709361039518,-500.97185302,0.00020547,2]
[316114403,1709361039528,-500.0,0.00020547,2]
[316114404,1709361039538,-500.0,0.00020547,2]
[316114405,1709361039547,-500.0,0.00020547,2]
[316114406,1709361039557,-500.0,0.00020547,2]
[316114407,1709361039567,-1128.17,0.00020547,2]
[316114408,1709361039577,-500.47574425,0.00020547,2]
[316114409,1709361039586,-502.09505148,0.00020547,2]
[316114410,1709361039596,-500.0,0.00020547,2]
[316114411,1709361039606,-500.60471599,0.00020547,2]
[316114412,1709361039616,-500.0,0.00020547,2]
[316114413,1709361039625,-543.98,0.00020547,2]
[316114414,1709361039635,-500.0,0.00020547,2]
[316114415,1709361039644,-324.69836612,0.00020547,2]
[316114416,1709361039653,-501.16454213,0.00020547,2]
[316114417,1709361039662,-500.0,0.00020547,2]
[316114418,1709361039672,-505.1273313,0.00020547,2]
[316114419,1709361039681,-500.0,0.00020547,2]
[316114420,1709361039691,-500.0,0.00020547,2]
[316114421,1709361039701,-500.0,0.00020547,2]
[316114422,1709361039711,-500.0,0.00020547,2]
[316114423,1709361039721,-500.0,0.00020547,2]
[316114424,1709361039731,-508.80968119,0.00020547,2]
[316114425,1709361039741,-500.0,0.00020547,2]
[316114426,1709361039752,-223.42425116,0.00020547,2]
[316114427,1709361039762,-500.0,0.00020547,2]
[316114428,1709361039771,-500.0,0.00020547,2]
[316114429,1709361039781,-500.0,0.00020547,2]
[316114430,1709361039792,-299.04195533,0.00020547,2]
[316114431,1709361039802,-1259.05,0.00020547,2]
[316114432,1709361039812,-500.0,0.00020547,2]
[316114433,1709361039821,-500.0,0.00020547,2]
[316114434,1709361039831,-500.0,0.00020547,2]
[316114435,1709361039841,-500.0,0.00020547,2]
[316114436,1709361039851,-500.0,0.00020547,2]
[316114437,1709361039860,-500.0,0.00020547,2]
[316114438,1709361039870,-547.02,0.00020547,2]
[316114440,1709361039880,-501.0694568,0.00020547,2]
[316114441,1709361039889,-500.0,0.00020547,2]
[316114443,1709361039899,-500.0,0.00020547,2]
[316114444,1709361039908,-502.04372726,0.00020547,2]
[316114445,1709361039919,-500.0,0.00020547,2]
[316114446,1709361039929,-500.38892661,0.00020547,2]
[316114447,1709361039938,-500.0,0.00020547,2]
[316114448,1709361039948,-500.0,0.00020547,2]
[316114449,1709361039957,-500.0,0.00020547,2]
[316114450,1709361039967,-192.86973459,0.00020547,2]
[316114451,1709361039976,-500.0,0.00020547,2]
[316114452,1709361039986,-372.26601719,0.00020547,2]
[316114453,1709361039995,-500.0,0.00020547,2]
[316114454,1709361040007,-500.0,0.00020547,2]
[316114455,1709361040016,-500.39015866,0.00020547,2]
[316114456,1709361040026,-500.0,0.00020547,2]
[316114457,1709361040035,-502.07424226,0.00020547,2]
[316114458,1709361040045,-500.0,0.00020547,2]
[316114459,1709361040056,-501.81279527,0.00020547,2]
[316114460,1709361040066,-500.0,0.00020547,2]
[316114461,1709361040075,-500.0,0.00020547,2]
[316114462,1709361040087,-500.0,0.00020547,2]
[316114463,1709361040097,-500.0,0.00020547,2]
[316114464,1709361040106,-583.39400593,0.00020547,2]
[316114465,1709361040115,-500.0,0.00020547,2]
[316114466,1709361040125,-500.0,0.00020547,2]
[316114467,1709361040137,-358.64605871,0.00020547,2]
[316114468,1709361040146,-500.0,0.00020547,2]
[316114469,1709361040156,-500.0,0.00020547,2]
[316114470,1709361040166,-500.0,0.00020995,2]
[316114471,1709361040175,-500.0,0.00020995,2]
[316114472,1709361040184,-500.0,0.00020996,2]
[316114473,1709361040194,-500.0,0.00021796,2]
[316114474,1709361040203,-500.0,0.00021796,2]
[316114475,1709361040213,-500.0,0.00021797,2]
[316114476,1709361040222,-502.0914706,0.00021797,2]
[316114477,1709361040232,-500.0,0.00021797,2]
[316114478,1709361040242,-500.0,0.00021797,2]
[316114479,1709361040251,-500.0,0.00021797,2]
[316114480,1709361040260,-632.78900236,0.00021797,2]
[316114481,1709361040270,-500.0,0.00021797,2]
[316114482,1709361040279,-500.0,0.00021797,2]
[316114483,1709361040288,-501.55616831,0.00021797,2]
[316114484,1709361040298,-500.0,0.00021797,2]
[316114485,1709361040307,-500.0,0.00021797,2]
[316114486,1709361040317,-500.0,0.00021797,2]
[316114487,1709361040326,-500.0,0.00021797,2]
[316114488,1709361040335,-500.0,0.00021797,2]
[316114489,1709361040345,-500.0,0.00021797,2]
[316114490,1709361040355,-500.0,0.00021797,2]
[316114491,1709361040365,-500.0,0.00021797,2]
[316114492,1709361040375,-500.0,0.00021797,2]
[316114493,1709361040385,-500.0,0.00021797,2]
[316114494,1709361040395,-500.0,0.00021797,2]
[316114495,1709361040404,-500.0,0.00021797,2]
[316114496,1709361040414,-500.0,0.00021797,2]
[316114497,1709361040424,-1259.05,0.00021797,2]
[316114498,1709361040433,-500.0,0.00021797,2]
[316114499,1709361040443,-501.59725895,0.00021797,2]
[316114500,1709361040452,-500.0,0.00021797,2]
[316114501,1709361040461,-500.0,0.00021797,2]
[316114503,1709361040471,-500.0,0.00021797,2]
[316114504,1709361040480,-467.42866008,0.00021797,2]
[316114506,1709361040490,-500.0,0.00021797,2]
[316114507,1709361040500,-500.0,0.00021797,2]
[316114508,1709361040510,-500.0,0.00021797,2]
[316114509,1709361040519,-500.0,0.00021797,2]
[316114510,1709361040528,-500.0,0.00021797,2]
[316114512,1709361040538,-500.0,0.00021797,2]
[316114513,1709361040547,-500.0,0.00021797,2]
[316114514,1709361040557,-500.0,0.00021797,2]
[316114515,1709361040567,-500.0,0.00021797,2]
[316114516,1709361040576,-500.0,0.00021797,2]
[316114517,1709361040586,-500.0,0.00021797,2]
[316114518,1709361040595,-500.0,0.00021797,2]
[316114519,1709361040604,-500.0,0.00021797,2]
[316114520,1709361040614,-500.0,0.00021797,2]
[316114521,1709361040623,-500.0,0.00021797,2]
[316114524,1709361040632,-500.0,0.00021798,2]
[316114525,1709361040747,-500.0,0.00021798,2]
[316114526,1709361040758,-500.0,0.00021798,2]
[316114527,1709361040767,-500.0,0.00021798,2]
[316114529,1709361040777,-187.80454548,0.00021798,2]
[316114530,1709361040786,-512.52975952,0.00021898,2]
[316114531,1709361040796,-500.0,0.00021927,2]
[316114532,1709361040806,-464.50218075,0.00021945,2]
[316114533,1709361040815,-548.22510904,0.00021945,2]
[316114534,1709361040825,-1518.58570366,0.0002199,3]
[316114535,1709361040834,-500.0,0.00021995,2]
[316114536,1709361040843,-5336.28971747,0.00021997,3]
[316114537,1709361040853,-356.69266548,0.00021997,3]
[316114538,1709361040862,-327.2251864,0.00022757,2]
[316114539,1709361040871,-157.1486779,0.00022758,2]
[316114540,1709361040881,-500.0,0.00022759,2]
[316114541,1709361040890,-500.0,0.00022759,2]
[316114542,1709361040899,-500.0,0.00022759,2]
[316114543,1709361040909,-500.0,0.00022759,2]
[316114544,1709361040918,-500.0,0.00022759,2]
[316114545,1709361040928,-500.0,0.00022759,2]
[316114546,1709361040937,-500.0,0.00022759,2]
[316114547,1709361040947,-500.0,0.00022759,2]
[316114548,1709361040956,-500.0,0.00022759,2]
[316114549,1709361040966,-500.0,0.00022759,2]
[316114550,1709361040975,-500.0,0.00022759,2]
[316114551,1709361040984,-500.0,0.0002276,2]
[316114552,1709361040994,-500.0,0.0002276,2]
[316114553,1709361041004,-500.0,0.0002276,2]
[316114554,1709361041013,-500.77842844,0.0002276,2]
[316114555,1709361041023,-480.33059787,0.0002276,2]
[316114556,1709361041032,-500.0,0.0002276,2]
[316114557,1709361041041,-227.19034493,0.0002276,2]
[316114558,1709361041050,-500.0,0.0002276,2]
[316114559,1709361041059,-500.0,0.0002276,2]
[316114560,1709361041072,-500.0,0.0002276,2]
[316114561,1709361041082,-537.49538098,0.0002276,2]
[316114562,1709361041091,-500.0,0.0002276,2]
[316114563,1709361041100,-408.38791988,0.0002276,2]
[316114564,1709361041110,-500.0,0.0002276,2]
[316114565,1709361041119,-500.0,0.0002276,2]
[316114566,1709361041129,-501.69512235,0.0002276,2]
[316114567,1709361041138,-500.91320071,0.0002276,2]
[316114568,1709361041148,-491.40291997,0.0002276,2]
[316114569,1709361041157,-500.17439852,0.0002276,2]
[316114570,1709361041166,-501.01578572,0.0002276,2]
[316114571,1709361041176,-500.0,0.0002276,2]
[316114572,1709361041185,-500.0,0.0002276,2]
[316114573,1709361041195,-500.0,0.0002276,2]
[316114574,1709361041204,-326.80849412,0.0002276,2]
[316114575,1709361041213,-643.23193934,0.0002276,2]
[316114576,1709361041222,-500.0,0.0002276,2]
[316114577,1709361041231,-543.68572627,0.0002276,2]
[316114578,1709361041241,-500.0,0.0002276,2]
[316114579,1709361041250,-500.0,0.0002276,2]
[316114580,1709361041262,-500.0,0.0002276,2]
[316114581,1709361041273,-500.0,0.0002276,2]
[316114582,1709361041282,-500.0,0.0002276,2]
[316114583,1709361041291,-500.0,0.0002276,2]
[316114584,1709361041300,-500.0,0.0002276,2]
[316114585,1709361041310,-500.0,0.0002276,2]
[316114586,1709361041319,-586.28523035,0.0002276,2]
[316114587,1709361041329,-631.00249815,0.0002276,2]
[316114588,1709361041343,-500.0,0.0002276,2]
[316114589,1709361041356,-502.03160602,0.0002276,2]
[316114590,1709361041378,-500.0,0.0002276,2]
[316114591,1709361041390,-410.28036195,0.0002276,2]
[316114592,1709361041399,-500.0,0.0002276,2]
[316114593,1709361041409,-505.21712635,0.0002276,2]
[316114594,1709361041418,-500.0,0.0002276,2]
[316114595,1709361041428,-500.0,0.0002276,2]
[316114596,1709361041438,-500.0,0.0002276,2]
[316114597,1709361041447,-500.0,0.0002276,2]
[316114598,1709361041457,-503.38002394,0.0002276,2]
[316114599,1709361041466,-500.0,0.0002276,2]
[316114600,1709361041475,-311.25723657,0.0002276,2]
[316114601,1709361041486,-437.29176718,0.0002276,2]
[316114602,1709361041495,-500.0,0.0002276,2]
[316114603,1709361041505,-302.79861161,0.0002276,2]
[316114604,1709361041514,-501.84878997,0.0002276,2]
[316114605,1709361041523,-500.0,0.0002276,2]
[316114606,1709361041532,-500.0,0.0002276,2]
[316114607,1709361041541,-500.0,0.0002276,2]
[316114608,1709361041551,-500.0,0.0002276,2]
[316114609,1709361041561,-500.0,0.0002276,2]
[316114610,1709361041570,-500.0,0.0002276,2]
[316114611,1709361041579,-505.85456976,0.0002276,2]
[316114612,1709361041588,-500.0,0.0002276,2]
[316114613,1709361041598,-607.88709182,0.0002276,2]
[316114614,1709361041607,-500.0,0.0002276,2]
[316114615,1709361041616,-503.66105551,0.0002276,2]
[316114616,1709361041626,-502.40997722,0.0002276,2]
[316114617,1709361041635,-512.19751019,0.0002276,2]
[316114618,1709361041644,-507.59555293,0.00022921,2]
[316114619,1709361041654,-501.84311006,0.00022921,2]
[316114620,1709361041663,-501.7806128,0.00022921,2]
[316114621,1709361041672,-500.0,0.00022921,2]
[316114622,1709361041682,-1259.05,0.00022921,2]
[316114623,1709361041691,-500.0,0.00022921,2]
[316114624,1709361041700,-500.0,0.00022921,2]
[316114625,1709361041710,-500.0,0.00022921,2]
[316114626,1709361041719,-500.0,0.00022921,2]
[316114627,1709361041728,-500.0,0.00022921,2]
[316114628,1709361041737,-500.0,0.00022921,2]
[316114629,1709361041747,-500.0,0.00022921,2]
[316114630,1709361041757,-1396.0,0.00023,2]
[316114631,1709361041766,-154.0233964,0.00023178,2]
[316114632,1709361041775,-417.16,0.00023348,2]
[316114633,1709361041784,-580.0,0.000235,2]
[316114634,1709361041793,-1000.0,0.00023501,5]
[316114635,1709361041803,-1000.0,0.00023599,5]
[316114636,1709361041812,-1000.0,0.00023601,5]
[316114637,1709361041822,-196.55503823,0.000239,2]
[316114638,1709361041832,-740.65520571,0.00023974,2]
[316114639,1709361041841,-500.0,0.00023994,2]
[316114640,1709361041851,-500.0,0.00023994,2]
[316114641,1709361041860,-500.0,0.00023995,2]
[316114642,1709361041869,-500.0,0.00023995,2]
[316114643,1709361041882,-500.0,0.00023995,2]
[316114644,1709361041891,-620.26214085,0.00023995,2]
[316114645,1709361041900,-1128.17,0.00023995,2]
[316114646,1709361041909,-500.0,0.00023995,2]
[316114647,1709361041918,-543.98,0.00023995,2]
[316114648,1709361041927,-500.0,0.00023995,2]
[316114649,1709361041936,-500.0,0.00023995,2]
[316114650,1709361041945,-503.9708363,0.00023995,2]
[316114651,1709361041954,-500.0,0.00023995,2]
[316114652,1709361041964,-500.0,0.00023995,2]
[316114653,1709361041973,-500.0,0.00023995,2]
[316114654,1709361041982,-547.02,0.00023995,2]